Workbook

Sheet Sheet1
A1: 산사태취약지역 지정예정지 조서
A2: 구분 | B2: 산림소재지 | F2: 지 목 | G2: 지 적(㎡) | H2: 지정면적(㎡) | I2: 소 유 자 | K2: 비 고
B3: 시군 | C3: 읍면 | D3: 리 | E3: 지 번 | I3: 주 소 | J3: 성 명
A4: 계 | E4: 62필지 | G4: =G5+G9+G21+G27+G37+G44+G50+G61+G64+G67+G70+G73+G77 -> 6,243,432 | H4: =H5+H9+H21+H27+H37+H44+H50+H61+H64+H67+H70+H73+H77 -> 18,948
A5: 2013-1호 | B5: [예천 용문 두천] | D5: 소계 | E5: 3필지 | G5: =SUM(G6:G8) -> 417,421 | H5: =SUM(H6:H8) -> 915
B6: 예천 | C6: 용문 | D6: 두천 | E6: 산81-1 | F6: 임 | G6: 101,256 | H6: 93 | I6: 대구광역시 수성구 지범로 300 두성타운 101동106호 | J6: 손창호
B7: 예천 | C7: 용문 | D7: 두천 | E7: 산83 | F7: 구 | G7: 208,661 | H7: 786 | I7: 서울시 강동구 천호동 28 용명브릿지아파트 101-606 | J7: 원동일
B8: 예천 | C8: 용문 | D8: 두천 | E8: 산82 | F8: 임 | G8: 107,504 | H8: 36 | I8: 예천군 용문면 두천리 326 | J8: 손윤원
A9: 2013-2호 | B9: [예천 용문 선] | D9: 소계 | E9: 11필지 | G9: =SUM(G10:G20) -> 140,258 | H9: =SUM(H10:H20) -> 1,579
B10: 예천 | C10: 용문 | D10: 선 | E10: 78-1 | F10: 전 | G10: 2,118 | H10: 252 | I10: 경산시 옥산동 725-2 신화타운 202-901 | J10: 권상도
B11: 예천 | C11: 용문 | D11: 선 | E11: 79-1 | F11: 답 | G11: 2,031 | H11: 87 | I11: 부산시 동래구 거제1동 366-12 | J11: 정귀봉
B12: 예천 | C12: 용문 | D12: 선 | E12: 81 | F12: 답 | G12: 546 | H12: 94 | I12: 예천군 용문면 선리 268 | J12: 이평순
B13: 예천 | C13: 용문 | D13: 선 | E13: 산14 | F13: 임 | G13: 13,884 | H13: 76 | I13: 예천군 용문면 선리 302 | J13: 권등정현
B14: 예천 | C14: 용문 | D14: 선 | E14: 309-3 | F14: 도 | G14: 122 | H14: 33 | J14: 예천군
B15: 예천 | C15: 용문 | D15: 선 | E15: 309-2 | F15: 도 | G15: 13 | H15: 9 | J15: 예천군
B16: 예천 | C16: 용문 | D16: 선 | E16: 307-10 | F16: 도 | G16: 72 | H16: 2 | J16: 예천군
B17: 예천 | C17: 용문 | D17: 선 | E17: 548 | F17: 도 | G17: 2,469 | H17: 8 | J17: 국(건설부)
B18: 예천 | C18: 용문 | D18: 선 | E18: 544 | F18: 구 | G18: 118,542 | H18: 984 | J18: 국(농수산)
B19: 예천 | C19: 용문 | D19: 선 | E19: 78-2 | F19: 도 | G19: 255 | H19: 16 | J19: 예천군
B20: 예천 | C20: 용문 | D20: 선 | E20: 78-3 | F20: 도 | G20: 206 | H20: 18 | J20: 예천군
A21: 2013-3호 | B21: [예천 하리 시항] | D21: 소계 | E21: 5필지 | G21: =SUM(G22:G26) -> 73,845 | H21: =SUM(H22:H26) -> 1,760
B22: 예천 | C22: 하리 | D22: 시항 | E22: 180-1 | F22: 답 | G22: 321 | H22: 59 | I22: 인천 동구 송림동 94-11 진로A 102동1004호 | J22: 김치한
B23: 예천 | C23: 하리 | D23: 시항 | E23: 182 | F23: 임 | G23: 926 | H23: 43 | I23: 대구 서구 평리동 636-15 | J23: 김명한
B24: 예천 | C24: 하리 | D24: 시항 | E24: 375-1 | F24: 답 | G24: 2,360 | H24: 77 | I24: 예천군 용문면 제곡동 449 | J24: 안동권씨연곡공종중
B25: 예천 | C25: 하리 | D25: 시항 | E25: 404 | F25: 구 | G25: 70,195 | H25: 1,576 | J25: 국(농수산)
B26: 예천 | C26: 하리 | D26: 시항 | E26: 180-3 | F26: 도 | G26: 43 | H26: 5 | J26: 예천군
A27: 2013-4호 | B27: [예천 보문 수계] | D27: 소계 | E27: 9필지 | G27: =SUM(G28:G36) -> 1,289,758 | H27: =SUM(H28:H36) -> 1,822
B28: 예천 | C28: 보문 | D28: 수계 | E28: 산159 | F28: 임 | G28: 275,054 | H28: 336 | I28: 예천군 보문면 수계리 158 | J28: 보문사
B29: 예천 | C29: 보문 | D29: 수계 | E29: 산147-1 | F29: 임 | G29: 1,008,633 | H29: 191 | I29: 예천군 보문면 수계리 158 | J29: 보문사
B30: 예천 | C30: 보문 | D30: 수계 | E30: 241-1 | F30: 도 | G30: 90 | H30: 35 | I30: 예천군 예천읍 백전리 156 | J30: 최용구
B31: 예천 | C31: 보문 | D31: 수계 | E31: 236 | F31: 전 | G31: 740 | H31: 246 | I31: 예천군 보문면 수계리 94 | J31: 정영구
B32: 예천 | C32: 보문 | D32: 수계 | E32: 238 | F32: 전 | G32: 2,671 | H32: 281 | I32: 예천군 보문면 수계리 691 | J32: 김윤태
B33: 예천 | C33: 보문 | D33: 수계 | E33: 221 | F33: 답 | G33: 397 | H33: 106 | I33: 예천군 예천읍 동본동 42 | J33: 단양장씨재안공파종중
B34: 예천 | C34: 보문 | D34: 수계 | E34: 233 | F34: 답 | G34: 76 | H34: 76 | I34: 예천군 보문면 수계리 197 | J34: 이이출
B35: 예천 | C35: 보문 | D35: 수계 | E35: 237 | F35: 답 | G35: 559 | H35: 519 | I35: 예천군 보문면 수계리 | J35: 정봉학
B36: 예천 | C36: 보문 | D36: 수계 | E36: 242 | F36: 답 | G36: 1,538 | H36: 32 | I36: 예천군 보문면 수계리 155 | J36: 함재동
A37: 2013-5호 | B37: [예천 호명 황지] | D37: 소계 | E37: 6필지 | G37: =SUM(G38:G49) -> 2,237,493 | H37: =SUM(H38:H43) -> 1,127
B38: 예천 | C38: 호명 | D38: 황지 | E38: 산41-3 | F38: 임 | G38: 265,654 | H38: 759 | I38: 충북 옥천군 옥천읍 금구리 235-1 가화현대아파트 104-902 | J38: 이창식 외1
B39: 예천 | C39: 호명 | D39: 황지 | E39: 산41-6 | F39: 임 | G39: 165,290 | H39: 164 | I39: 서울 강동구 둔촌동 174-1 주공아파트 232동302호 | J39: 이준섭
B40: 예천 | C40: 호명 | D40: 황지 | E40: 12 | F40: 임 | G40: 112 | H40: 48 | I40: 예천군 보문면 신월동 45 | J40: 정찬섭 외5
B41: 예천 | C41: 호명 | D41: 황지 | E41: 13 | F41: 답 | G41: 2,354 | H41: 25 | I41: 예천군 보문면 신월동 45 | J41: 정채섭 외5
B42: 예천 | C42: 호명 | D42: 황지 | E42: 14 | F42: 전 | G42: 1,369 | H42: 10 | I42: 예천군 호명면 황지리 25 | J42: 정기모
B43: 예천 | C43: 호명 | D43: 황지 | E43: 797 | F43: 구 | G43: 50,192 | H43: 121 | J43: 국(농수산)
A44: 2013-6호 | B44: [예천 지보 매창] | D44: 소계 | E44: 5필지 | G44: =SUM(G45:G49) -> 876,261 | H44: =SUM(H45:H49) -> 851
B45: 예천 | C45: 지보 | D45: 매창 | E45: 산52 | F45: 임 | G45: 147,967 | H45: 114 | I45: 예천군 지보면 매창리 1084 | J45: 권오국 외5
B46: 예천 | C46: 지보 | D46: 매창 | E46: 산59 | F46: 임 | G46: 720,000 | H46: 372 | I46: 예천군 풍양면 청곡리 824-1 | J46: 동래정씨종중
B47: 예천 | C47: 지보 | D47: 매창 | E47: 1118 | F47: 임 | G47: 476 | H47: 98 | I47: 예천군 지보면 매창리 1093 | J47: 권오발
B48: 예천 | C48: 지보 | D48: 매창 | E48: 산67 | F48: 구 | G48: 1,620 | H48: 145 | J48: 국(농수산)
B49: 예천 | C49: 지보 | D49: 매창 | E49: 1205 | F49: 구 | G49: 6,198 | H49: 122 | J49: 국(농수산)
A50: 2013-7호 | B50: [예천 풍양 삼강] | D50: 소계 | E50: 10필지 | G50: =SUM(G51:G60) -> 272,206 | H50: =SUM(H51:H60) -> 1,594
B51: 예천 | C51: 풍양 | D51: 삼강 | E51: 산18-1 | F51: 임 | G51: 201,914 | H51: 473 | I51: 대구시 수성구 만촌동 1016-18 | J51: 정상열 외11
B52: 예천 | C52: 풍양 | D52: 삼강 | E52: 산21 | F52: 임 | G52: 25,388 | H52: 19 | I52: 서울 서대문구 신촌동 2-77 | J52: 정길태
B53: 예천 | C53: 풍양 | D53: 삼강 | E53: 산32 | F53: 임 | G53: 11,692 | H53: 116 | I53: 경기도 안양시 동안구 평촌대로 179 목련아파트 508-1001 | J53: 정윤재 외2
B54: 예천 | C54: 풍양 | D54: 삼강 | E54: 336 | F54: 유 | G54: 992 | H54: 91 | I54: 예천군 풍양면 삼강리 287 | J54: 서원지섭
B55: 예천 | C55: 풍양 | D55: 삼강 | E55: 산16 | F55: 임 | G55: 22,027 | H55: 53 | I55: 서울시 서대문구 신촌동 2-77 | J55: 정길태
B56: 예천 | C56: 풍양 | D56: 삼강 | E56: 산57 | F56: 구 | G56: 3,968 | H56: 198 | J56: 국(농수산)
B57: 예천 | C57: 풍양 | D57: 삼강 | E57: 465 | F57: 도 | G57: 972 | H57: 173 | J57: 국(건설부)
B58: 예천 | C58: 풍양 | D58: 삼강 | E58: 466-2 | F58: 도 | G58: 2,674 | H58: 341 | J58: 국(농수산)
B59: 예천 | C59: 풍양 | D59: 삼강 | E59: 371 | F59: 잡 | G59: 2,496 | H59: 122 | J59: 예천군
B60: 예천 | C60: 풍양 | D60: 삼강 | E60: 344 | F60: 구 | G60: 83 | H60: 8 | I60: 예천군 풍양면 청운동 28 | J60: 삼정운섭
A61: 2013-8호 | B61: [예천 보문 수계] | D61: 소계 | E61: 2필지 | G61: =SUM(G62:G63) -> 226,810 | H61: =SUM(H62:H63) -> 1,500
B62: 예천 | C62: 보문 | D62: 수계 | E62: 산270 | F62: 구 | G62: 1,719 | H62: 1,000 | J62: 국(농수산)
B63: 예천 | C63: 보문 | D63: 수계 | E63: 산143 | F63: 임 | G63: 225,091 | H63: 500 | I63: 예천군 보문면 보문사길 249 | J63: 대한불교조개종 보문사
A64: 2013-9호 | B64: [예천 보문 산성] | D64: 소계 | E64: 2필지 | G64: =SUM(G65:G66) -> 227,305 | H64: =SUM(H65:H66) -> 1,300
B65: 예천 | C65: 보문 | D65: 산성 | E65: 산97 | F65: 임 | G65: 226,764 | H65: 1,000 | I65: 예천군 보문면 산성리 210 | J65: 산성동민회
B66: 예천 | C66: 보문 | D66: 산성 | E66: 542-1 | F66: 답 | G66: 541 | H66: 300 | J66: 예천군
A67: 2013-10호 | B67: [예천 감천 수한] | D67: 소계 | E67: 2필지 | G67: =SUM(G68:G69) -> 6,777 | H67: =SUM(H68:H69) -> 1,500
B68: 예천 | C68: 감천 | D68: 수한 | E68: 산19 | F68: 임 | G68: 5,157 | H68: 500 | I68: 서울시 금천구 시흥동 801-20 | J68: 이우진
B69: 예천 | C69: 감천 | D69: 수한 | E69: 산89 | F69: 구 | G69: 1,620 | H69: 1,000 | J69: 국(농수산)
A70: 2013-11호 | B70: [예천 예천 백전] | D70: 소계 | E70: 2필지 | G70: =SUM(G71:G72) -> 99,082 | H70: =SUM(H71:H72) -> 1,500
B71: 예천 | C71: 예천 | D71: 백전 | E71: 산40 | F71: 임 | G71: 95,014 | H71: 1,200 | I71: 강원도 강릉시 포남동 1241-6 미진2차맨션 801 | J71: 장종익 외9
B72: 예천 | C72: 예천 | D72: 백전 | E72: 428-3 | F72: 전 | G72: 4,068 | H72: 300 | I72: 강원도 강릉시 포남동 1241-6 미진2차맨션 801 | J72: 장종익 외4
A73: 2013-12호 | B73: [예천 하리 시항] | D73: 소계 | E73: 3필지 | G73: =SUM(G74:G76) -> 157,253 | H73: =SUM(H74:H76) -> 2,000
B74: 예천 | C74: 하리 | D74: 시항 | E74: 산28-1 | F74: 임 | G74: 85,984 | H74: 700 | I74: 용문면 제곡동 356 | J74: 권충강
B75: 예천 | C75: 하리 | D75: 시항 | E75: 194-1 | F75: 답 | G75: 1,074 | H75: 300 | I75: 예천군 하리면 시항리 26 | J75: 김영동
B76: 예천 | C76: 하리 | D76: 시항 | E76: 404 | F76: 구 | G76: 70,195 | H76: 1,000 | J76: 국(농수산)
A77: 2013-13호 | B77: [예천 지보 매창] | D77: 소계 | E77: 2필지 | G77: =SUM(G78:G79) -> 218,963 | H77: =SUM(H78:H79) -> 1,500
B78: 예천 | C78: 지보 | D78: 매창 | E78: 산51 | F78: 임 | G78: 212,765 | H78: 500 | I78: 예천군 지보면 마전리 276 | J78: 연주현씨 장사랑 공파 종중
B79: 예천 | C79: 지보 | D79: 매창 | E79: 1205 | F79: 구 | G79: 6,198 | H79: 1,000 | J79: 국(농수산)

Sheet Sheet2
A1: 계류보전 | B1: [예천 하리 시항] | D1: 소계 | G1: 3,607 | I1: 179
B2: 예천 | C2: 하리 | D2: 시항 | E2: 180-1 | F2: 답 | G2: 321 | H2: 계류보전 | I2: 59 | J2: 사 | K2: 인천 동구 송림동 94-11 진로A 102동1004호 | L2: 김치한
B3: 예천 | C3: 하리 | D3: 시항 | E3: 182 | F3: 임 | G3: 926 | H3: 계류보전 | I3: 43 | J3: 사 | K3: 대구 서구 평리동 636-15 | L3: 김명한
B4: 예천 | C4: 하리 | D4: 시항 | E4: 375-1 | F4: 답 | G4: 2,360 | H4: 계류보전 | I4: 77 | J4: 사 | K4: 예천군 용문면 제곡동 449 | L4: 안동권씨연곡공종중

Sheet Sheet3
A1: 계류보전 | B1: [예천 하리 시항] | D1: 소계 | G1: 3,607 | I1: 179
B2: 예천 | C2: 하리 | D2: 시항 | E2: 180-1 | F2: 답 | G2: 321 | H2: 계류보전 | I2: 59 | J2: 사 | K2: 인천 동구 송림동 94-11 진로A 102동1004호 | L2: 김치한
B3: 예천 | C3: 하리 | D3: 시항 | E3: 182 | F3: 임 | G3: 926 | H3: 계류보전 | I3: 43 | J3: 사 | K3: 대구 서구 평리동 636-15 | L3: 김명한
B4: 예천 | C4: 하리 | D4: 시항 | E4: 375-1 | F4: 답 | G4: 2,360 | H4: 계류보전 | I4: 77 | J4: 사 | K4: 예천군 용문면 제곡동 449 | L4: 안동권씨연곡공종중
A5: 계류보전 | B5: [예천 호명 황지] | D5: 소계 | G5: 434,779 | I5: 1,006
B6: 예천 | C6: 호명 | D6: 황지 | E6: 산41-3 | F6: 임 | G6: 265,654 | H6: 계류보전 | I6: 759 | J6: 사 | K6: 대전 동구 효동 135-1 현대아파트 102-1501 | L6: 박찬보외1
B7: 예천 | C7: 호명 | D7: 황지 | E7: 산41-6 | F7: 임 | G7: 165,290 | H7: 계류보전 | I7: 164 | J7: 사 | K7: 서울 강동구 둔촌동 174-1 주공아파트 232동302호 | L7: 이준섭
B8: 예천 | C8: 호명 | D8: 황지 | E8: 12 | F8: 임 | G8: 112 | H8: 계류보전 | I8: 48 | J8: 사 | K8: 예천구 보문면 신월동 45 | L8: 정찬섭외5
B9: 예천 | C9: 호명 | D9: 황지 | E9: 13 | F9: 답 | G9: 2,354 | H9: 계류보전 | I9: 25 | J9: 사 | K9: 예천군 보문면 신월동 45 | L9: 정채섭외5
B10: 예천 | C10: 호명 | D10: 황지 | E10: 14 | F10: 전 | G10: 1,369 | H10: 계류보전 | I10: 10 | J10: 사 | K10: 예천군 호명면 황지리 25 | L10: 정기모
